fUST/lending_fUST_20240417
["ID","MTS","AMOUNT","RATE_DAILY","PERIOD"]
[322802717,1713333037484,-518.77188028,0.00054794,120]
[322802718,1713333037495,-500.0,0.00054794,120]
[322802719,1713333037504,-500.0,0.00054794,120]
[322802720,1713333037514,-500.0,0.00054794,120]
[322802721,1713333037524,-500.0,0.00054794,120]
[322802722,1713333037535,-516.57463545,0.00054794,120]
[322802723,1713333037545,-509.55028717,0.00054794,120]
[322802724,1713333037556,-500.0,0.00054794,120]
[322802725,1713333037565,-503.0640558,0.00054794,120]
[322802726,1713333037575,-500.0,0.00054794,120]
[322802727,1713333037586,-500.0,0.00054794,120]
[322802728,1713333037597,-501.80266025,0.00054794,120]
[322802729,1713333037607,-508.52357478,0.00054794,120]
[322802730,1713333037617,-501.41361697,0.00054794,120]
[322802731,1713333037627,-601.19692072,0.00054794,120]
[322802732,1713333037639,-505.95079424,0.00054794,120]
[322802733,1713333037649,-500.0,0.00054794,120]
[322802734,1713333037658,-500.0,0.00054794,120]
[322802735,1713333037668,-500.0,0.00054794,120]
[322802736,1713333037678,-500.0,0.00054794,120]
[322802737,1713333037688,-503.66013665,0.00054794,120]
[322802738,1713333037698,-500.0,0.00054794,120]
[322802739,1713333037707,-500.0,0.00054794,120]
[322802740,1713333037716,-642.60863323,0.00054794,120]
[322802741,1713333037726,-500.0,0.00054794,120]
[322802742,1713333037734,-502.70140857,0.00054794,120]
[322802743,1713333037744,-500.0,0.00054794,120]
[322802746,1713333037753,-7171.7,0.00054794,120]
[322802747,1713333037762,-7171.7,0.00054794,120]
[322802749,1713333037771,-7171.7,0.00054794,120]
[322802751,1713333037780,-7171.7,0.00054794,120]
[322802752,1713333037789,-7171.7,0.00054794,120]
[322802753,1713333037798,-7171.7,0.00054794,120]
[322802755,1713333037808,-7171.7,0.00054794,120]
[322802757,1713333037817,-7171.7,0.00054794,120]
[322802758,1713333037826,-500.0,0.00054794,120]
[322802759,1713333037835,-7171.7,0.00054794,120]
[322802760,1713333037844,-7171.7,0.00054794,120]
[322802761,1713333037854,-500.0,0.00054794,120]
[322802762,1713333037863,-7171.7,0.00054794,120]
[322802763,1713333037873,-7171.7,0.00054794,120]
[322802765,1713333037883,-7171.7,0.00054794,120]
[322802771,1713333037973,-7171.7,0.00054794,120]
[322802772,1713333037993,-7171.7,0.00054794,120]
[322802773,1713333038002,-7171.7,0.00054794,120]
[322802775,1713333038011,-7171.7,0.00054794,120]
[322802778,1713333038021,-522.0423766,0.00054794,120]
[322802781,1713333038030,-7171.7,0.00054794,120]
[322802783,1713333038041,-7171.7,0.00054794,120]
[322802785,1713333038049,-7171.7,0.00054794,120]
[322802786,1713333038059,-7171.7,0.00054794,120]
[322802787,1713333038068,-7171.7,0.00054794,120]
[322802788,1713333038077,-500.0,0.00054794,120]
[322802790,1713333038087,-7171.7,0.00054794,120]
[322802792,1713333038096,-7171.86516893,0.00054794,120]
[322802793,1713333038105,-500.00970311,0.00054794,120]
[322802794,1713333038114,-500.0,0.00054794,120]
[322802795,1713333038123,-579.09,0.00054794,120]
[322802796,1713333038133,-500.0,0.00054794,120]
[322802797,1713333038142,-1007.38944064,0.00054794,120]
[322802798,1713333038151,-500.0,0.00054794,120]
[322802799,1713333038160,-500.0,0.00054794,120]
[322802800,1713333038170,-500.0,0.00054794,120]
[322802801,1713333038179,-500.0,0.00054794,120]
[322802802,1713333038188,-500.0,0.00054794,120]
[322802803,1713333038197,-300.0,0.00054794,7]
[322802804,1713333038206,-500.0,0.00054794,120]
[322802805,1713333038216,-502.27370603,0.00054794,120]
[322802806,1713333038225,-500.0,0.00054794,120]
[322802807,1713333038234,-501.82517727,0.00054794,120]
[322802808,1713333038244,-500.0,0.00054794,120]
[322802809,1713333038253,-500.0,0.00054794,120]
[322802810,1713333038262,-500.0,0.00054794,120]
[322802811,1713333038271,-500.0,0.00054794,120]
[322802812,1713333038280,-500.0,0.00054794,120]
[322802813,1713333038290,-500.0,0.00054794,120]
[322802814,1713333038299,-500.0,0.00054794,120]
[322802815,1713333038309,-500.0,0.00054794,120]
[322802816,1713333038318,-500.0,0.00054794,120]
[322802817,1713333038327,-500.0,0.00054794,120]
[322802818,1713333038336,-500.0,0.00054794,120]
[322802819,1713333038346,-500.0,0.00054794,120]
[322802821,1713333038355,-500.0,0.00054794,120]
[322802823,1713333038365,-500.0,0.00054794,120]
[322802824,1713333038375,-500.0,0.00054794,120]
[322802825,1713333038384,-500.0,0.00054794,120]
[322802826,1713333038393,-500.0,0.00054794,120]
[322802827,1713333038402,-1749.94,0.00054794,120]
[322802828,1713333038411,-500.0,0.00054794,120]
[322802829,1713333038421,-500.0,0.00054794,120]
[322802830,1713333038430,-500.0,0.00054794,120]
[322802831,1713333038439,-500.0,0.00054794,120]
[322802832,1713333038448,-500.0,0.00054794,120]
[322802833,1713333038458,-618.01544244,0.00054794,7]
[322802834,1713333038468,-500.0,0.00054794,120]
[322802835,1713333038477,-500.0,0.00054794,120]
[322802836,1713333038487,-318.85213693,0.00054794,120]
[322802837,1713333038497,-500.0,0.00054794,120]
[322802838,1713333038507,-500.0,0.00054794,120]
[322802839,1713333038517,-500.0,0.00054794,120]
[322802840,1713333038527,-500.0,0.00054794,120]
[322802841,1713333038537,-500.0,0.00054794,120]
[322802842,1713333038547,-1000.0,0.00054794,120]
[322802843,1713333038557,-500.0,0.00054794,120]
[322802844,1713333038568,-500.0,0.00054794,120]
[322802845,1713333038577,-507.69563197,0.00054794,120]
[322802846,1713333038588,-500.0,0.00054794,120]
[322802847,1713333038600,-500.0,0.00054794,120]
[322802848,1713333038610,-200.63911183,0.00054794,120]
[322802849,1713333038620,-500.0,0.00054794,120]
[322802850,1713333038630,-172.992695,0.00054794,7]
[322802851,1713333038640,-500.0,0.00054794,120]
[322802852,1713333038649,-500.0,0.00054794,120]
[322802853,1713333038659,-500.0,0.00054794,120]
[322802854,1713333038668,-172.992695,0.00054794,7]
[322802855,1713333038678,-500.0,0.00054794,120]
[322802856,1713333038687,-500.0,0.00054794,120]
[322802857,1713333038696,-500.0,0.00054794,120]
[322802858,1713333038706,-500.0,0.00054794,120]
[322802859,1713333038715,-500.0,0.00054794,120]
[322802860,1713333038724,-500.0,0.00054794,120]
[322802861,1713333038733,-27989.2,0.00054794,120]
[322802862,1713333038743,-500.0,0.00054794,120]
[322802863,1713333038752,-266.22334664,0.00054794,120]
[322802864,1713333038761,-583.93,0.00054794,120]
[322802865,1713333038771,-500.0,0.00054794,120]
[322802866,1713333038780,-506.56073617,0.00054794,120]
[322802867,1713333038789,-500.0,0.00054794,120]
[322802868,1713333038798,-500.0,0.00054794,120]
[322802869,1713333038807,-500.0,0.00054794,120]
[322802870,1713333038816,-500.0,0.00054794,120]
[322802871,1713333038825,-500.0,0.00054794,120]
[322802872,1713333038834,-512.52519239,0.00054794,120]
[322802873,1713333038843,-500.0,0.00054794,65]
[322802874,1713333038852,-7519.535238,0.00054794,7]
[322802875,1713333038861,-506.91531107,0.00054794,120]
[322802876,1713333038870,-494.99104232,0.00054794,120]
[322802877,1713333038880,-7519.535238,0.00054794,7]
[322802878,1713333038890,-500.0,0.00054794,120]
[322802879,1713333038899,-500.0,0.00054794,120]
[322802880,1713333038908,-500.0,0.00054794,120]
[322802881,1713333038918,-506.27800608,0.00054794,120]
[322802882,1713333038927,-636.78090796,0.00054794,120]
[322802883,1713333038936,-500.0,0.00054794,120]
[322802884,1713333038945,-500.0,0.00054794,120]
[322802885,1713333038955,-500.0,0.00054794,120]
[322802886,1713333038964,-151.0,0.00054794,7]
[322802887,1713333038973,-500.0,0.00054794,7]
[322802888,1713333038982,-500.0,0.00054794,120]
[322802889,1713333038992,-500.0,0.00054794,120]
[322802890,1713333039001,-151.0,0.00054794,7]
[322802891,1713333039010,-500.0,0.00054794,120]
[322802892,1713333039020,-21498.73,0.00054794,120]
[322802893,1713333039033,-500.0,0.00054794,120]
[322802894,1713333039043,-500.0,0.00054794,120]
[322802895,1713333039053,-666.05,0.00054794,120]
[322802896,1713333039064,-500.0,0.00054794,120]
[322802897,1713333039074,-1762.426907,0.00054794,7]
[322802898,1713333039084,-500.0,0.00054794,120]
[322802899,1713333039093,-500.0,0.00054794,60]
[322802900,1713333039103,-2066.852675,0.00054794,7]
[322802901,1713333039112,-1762.426907,0.00054794,7]
[322802902,1713333039121,-500.0,0.00054794,120]
[322802903,1713333039131,-500.0,0.00054794,120]
[322802904,1713333039141,-500.0,0.00054794,120]
[322802905,1713333039150,-2066.852675,0.00054794,7]
[322802906,1713333039160,-500.0,0.00054794,120]
[322802907,1713333039169,-502.31416185,0.00054794,120]
[322802908,1713333039178,-500.0,0.00054794,120]
[322802909,1713333039188,-500.0,0.00054794,120]
[322802910,1713333039198,-500.0,0.00054794,120]
[322802911,1713333039209,-500.0,0.00054794,120]
[322802912,1713333039219,-309.62211865,0.00054794,120]
[322802913,1713333039228,-500.0,0.00054794,120]
[322802914,1713333039237,-500.0,0.00054794,120]
[322802915,1713333039247,-500.0,0.00054794,120]
[322802916,1713333039256,-500.0,0.00054794,120]
[322802917,1713333039265,-5589.65,0.00054794,120]
[322802918,1713333039274,-500.0,0.00054794,120]
[322802919,1713333039284,-500.0,0.00054794,120]
[322802920,1713333039293,-500.0,0.00054794,120]
[322802921,1713333039303,-3817.42,0.00054794,120]
[322802922,1713333039312,-500.0,0.00054794,120]
[322802923,1713333039321,-500.0,0.00054794,120]
[322802924,1713333039331,-500.0,0.00054794,120]
[322802925,1713333039341,-466.384024,0.00054794,7]
[322802926,1713333039350,-500.0,0.00054794,120]
[322802927,1713333039360,-466.384024,0.00054794,7]
[322802928,1713333039369,-500.60272576,0.00054794,120]
[322802929,1713333039379,-500.0,0.00054794,120]
[322802930,1713333039389,-151.0,0.00054794,7]
[322802931,1713333039398,-816.55,0.00054794,120]
[322802932,1713333039408,-500.0,0.00054794,120]
[322802933,1713333039417,-151.0,0.00054794,7]
[322802934,1713333039427,-347.64567751,0.00054794,120]
[322802935,1713333039436,-500.0,0.00054794,120]
[322802936,1713333039445,-500.0,0.00054794,120]
[322802937,1713333039454,-500.0,0.00054794,120]
[322802938,1713333039464,-500.0,0.00054794,120]
[322802939,1713333039473,-500.0,0.00054794,120]
[322802940,1713333039483,-151.0,0.00054794,7]
[322802941,1713333039492,-500.0,0.00054794,120]
[322802942,1713333039502,-500.0,0.00054794,120]
[322802943,1713333039511,-233.83705028,0.00054794,2]
[322802944,1713333039521,-500.0,0.00054794,120]
[322802945,1713333039530,-500.0,0.00054794,120]
[322802946,1713333039539,-500.0,0.00054794,120]
[322802947,1713333039549,-500.85065136,0.00054794,120]
[322802948,1713333039558,-500.0,0.00054794,120]
[322802949,1713333039567,-503.89513175,0.00054794,120]
[322802950,1713333039577,-500.76260811,0.00054794,2]
[322802951,1713333039586,-500.0,0.00054794,120]
[322802952,1713333039599,-500.0,0.00054794,120]
[322802953,1713333039608,-500.0,0.00054794,120]
[322802954,1713333039617,-500.0,0.00054794,120]
[322802955,1713333039628,-500.0,0.00054794,120]
[322802956,1713333039637,-500.0,0.00054794,120]
[322802957,1713333039647,-500.0,0.00054794,120]
[322802958,1713333039656,-811.29,0.00054794,120]
[322802959,1713333039665,-500.0,0.00054794,120]
[322802960,1713333039674,-500.0,0.00054794,120]
[322802961,1713333039683,-500.0,0.00054794,120]
[322802962,1713333039694,-609.85811734,0.00054794,120]
[322802963,1713333039702,-151.0,0.00054794,7]
[322802964,1713333039712,-1224.79,0.00054794,120]
[322802965,1713333039722,-500.0,0.00054794,120]
[322802966,1713333039731,-223.65134094,0.00054795,120]
[322802967,1713333039740,-224.15,0.00054795,120]
[322802968,1713333039749,-162.79188432,0.00054795,120]
[322802969,1713333039758,-162.79188432,0.00054795,120]
[322802970,1713333039768,-162.79188432,0.00054795,120]
[322802971,1713333039777,-162.79188432,0.00054795,120]
[322802972,1713333039786,-162.79188432,0.00054795,120]
[322802973,1713333039795,-162.79188432,0.00054795,120]
[322802974,1713333039804,-162.79188432,0.00054795,120]
[322802975,1713333039814,-162.79188432,0.00054795,120]
[322802976,1713333039823,-162.79188432,0.00054795,120]
[322802977,1713333039832,-162.79188432,0.00054795,120]
[322802978,1713333039841,-163.29,0.00054795,120]
[322802979,1713333039850,-1000.0,0.00056164,120]
[322802980,1713333039859,-254.817243,0.00056236,2]
[322802981,1713333039869,-157.593849,0.00056621,2]
[322802983,1713333039879,-1000.0,0.00058904,120]
[322802985,1713333039888,-501.93,0.0006,120]
[322802988,1713333039897,-1000.0,0.00060137,120]
[322802989,1713333039907,-500.0,0.00060273,120]
[322802990,1713333039916,-500.0,0.00060273,120]
[322802991,1713333039925,-500.0,0.00060273,120]
[322802992,1713333039935,-500.0,0.00060273,120]
[322802993,1713333039944,-500.0,0.00060273,120]
[322802994,1713333039952,-202.58229498,0.00060273,120]
[322802995,1713333039961,-500.0,0.00060273,120]
[322802996,1713333039970,-502.16515474,0.00060273,120]
[322802997,1713333039980,-500.0,0.00060273,120]
[322802998,1713333039989,-500.0,0.00060273,120]
[322802999,1713333039998,-500.0,0.00060273,120]
[322803000,1713333040007,-500.0,0.00060273,120]
[322803001,1713333040017,-500.0,0.00060273,120]
[322803002,1713333040026,-500.0,0.00060273,120]
[322803003,1713333040035,-176.99342478,0.00060273,120]
[322803004,1713333040044,-7591.79,0.00060273,120]
[322803005,1713333040052,-501.37621636,0.00060273,120]
[322803006,1713333040061,-500.0,0.00060273,120]
[322803007,1713333040071,-500.0,0.00060273,120]
[322803008,1713333040080,-586.18212521,0.00060273,120]
[322803009,1713333040089,-500.0,0.00060273,120]
[322803010,1713333040099,-500.0,0.00060273,120]
[322803011,1713333040108,-500.0,0.00060273,120]
[322803012,1713333040117,-500.0,0.00060273,120]
[322803013,1713333040127,-501.40844459,0.00060273,120]
[322803014,1713333040136,-500.0,0.00060273,120]
[322803015,1713333040145,-638.723184,0.00060273,120]
[322803016,1713333040154,-500.0,0.00060273,120]
[322803017,1713333040163,-501.27973557,0.00060273,120]
[322803018,1713333040171,-501.68234142,0.00060273,120]
[322803019,1713333040180,-344.63399497,0.00060273,120]
[322803020,1713333040189,-500.0,0.00060273,120]
[322803021,1713333040199,-500.0,0.00060273,120]
[322803022,1713333040292,-500.0,0.00060273,120]
[322803024,1713333040303,-501.15771817,0.00060273,120]
[322803027,1713333040313,-502.6552687,0.00060273,120]
[322803029,1713333040323,-439.1578365,0.00060273,120]
[322803030,1713333040332,-500.0,0.00060273,120]
[322803032,1713333040341,-500.0,0.00060273,120]
[322803034,1713333040349,-507.21204874,0.00060273,120]
[322803035,1713333040358,-500.0,0.00060273,120]
[322803036,1713333040367,-500.0,0.00060273,120]
[322803037,1713333040378,-641.23425047,0.00060273,120]
[322803038,1713333040388,-500.0,0.00060273,120]
[322803039,1713333040397,-503.11473225,0.00060273,120]
[322803040,1713333040406,-500.0,0.00060273,120]
[322803041,1713333040416,-514.48081721,0.00060273,120]
[322803042,1713333040426,-500.0,0.00060273,120]
[322803043,1713333040439,-500.0,0.00060273,120]
[322803044,1713333040448,-500.0,0.00060273,120]
[322803045,1713333040460,-500.0,0.00060273,120]
[322803046,1713333040470,-500.0,0.00060273,120]
[322803047,1713333040480,-504.58469072,0.00060273,120]
[322803048,1713333040490,-509.0186639,0.00060273,120]
[322803049,1713333040500,-500.0,0.00060273,120]
[322803050,1713333040510,-509.42339819,0.00060273,120]
[322803051,1713333040519,-500.0,0.00060273,120]
[322803052,1713333040529,-500.0,0.00060273,120]
[322803053,1713333040539,-502.23790388,0.00060273,120]
[322803054,1713333040549,-500.0,0.00060273,120]
[322803055,1713333040558,-502.14335648,0.00060273,120]
[322803056,1713333040569,-509.04640783,0.00060273,120]
[322803057,1713333040579,-500.0,0.00060273,120]
[322803058,1713333040590,-503.15205087,0.00060273,120]
[322803059,1713333040603,-504.23946103,0.00060273,120]
[322803060,1713333040612,-500.0,0.00060273,120]
[322803061,1713333040620,-500.0,0.00060273,120]
[322803062,1713333040632,-500.0,0.00060273,120]
[322803063,1713333040642,-504.30302717,0.00060273,120]
[322803064,1713333040651,-500.0,0.00060273,120]
[322803065,1713333040662,-500.0,0.00060273,120]
[322803066,1713333040673,-500.0,0.00060273,120]
[322803067,1713333040683,-500.0,0.00060273,120]
[322803068,1713333040693,-507.29937309,0.00060273,120]
[322803069,1713333040703,-500.0,0.00060273,120]
[322803070,1713333040712,-500.0,0.00060273,120]
[322803071,1713333040721,-505.47572388,0.00060273,120]
[322803072,1713333040730,-219.51849604,0.00060273,120]
[322803073,1713333040739,-525.53465079,0.00060273,120]
[322803074,1713333040748,-502.43521718,0.00060273,120]
[322803075,1713333040757,-500.0,0.00060273,120]
[322803076,1713333040767,-502.89778903,0.00060273,120]
[322803079,1713333040776,-500.0,0.00060273,120]
[322803080,1713333040787,-589.25586235,0.00060273,120]
[322803084,1713333040800,-500.0,0.00060273,120]
[322803086,1713333040809,-151.401165,0.00060273,120]
[322803088,1713333040818,-888.587281,0.00060273,120]
[322803089,1713333040828,-500.0,0.00060273,120]
[322803091,1713333040837,-888.587281,0.00060273,120]
[322803093,1713333040847,-500.0,0.00060273,120]
[322803095,1713333040857,-500.0,0.00060273,120]
[322803097,1713333040867,-500.0,0.00060273,120]
[322803098,1713333040878,-579.09,0.00060273,120]
[322803099,1713333040887,-511.27255129,0.00060273,120]
[322803100,1713333040896,-500.0,0.00060273,120]
[322803101,1713333040905,-500.0,0.00060273,120]
[322803102,1713333040914,-500.0,0.00060273,120]
[322803103,1713333040923,-500.0,0.00060273,120]
[322803104,1713333040932,-500.0,0.00060273,120]
[322803105,1713333040942,-302.19487029,0.00060273,7]
[322803106,1713333040951,-500.0,0.00060273,120]
[322803107,1713333040959,-500.0,0.00060273,120]
[322803108,1713333040968,-500.0,0.00060273,120]
[322803109,1713333040977,-796.910787,0.00060273,120]
[322803110,1713333040986,-1000.733791,0.00060273,120]
[322803111,1713333040995,-796.910787,0.00060273,120]
[322803112,1713333041005,-1000.733791,0.00060273,120]
[322803113,1713333041015,-500.0,0.00060273,120]
[322803114,1713333041024,-501.82347223,0.00060273,120]
[322803115,1713333041033,-501.4104157,0.00060273,120]
[322803116,1713333041042,-505.15045303,0.00060273,120]
[322803117,1713333041051,-500.0,0.00060273,120]
[322803118,1713333041061,-500.0,0.00060273,120]
[322803119,1713333041071,-500.0,0.00060273,120]
[322803120,1713333041081,-1749.94,0.00060273,120]
[322803121,1713333041091,-500.0,0.00060273,120]
[322803122,1713333041102,-500.0,0.00060273,120]
[322803123,1713333041111,-500.0,0.00060273,120]
[322803124,1713333041120,-500.0,0.00060273,120]
[322803125,1713333041132,-500.0,0.00060273,120]
[322803126,1713333041141,-500.0,0.00060273,120]
[322803127,1713333041152,-604.11041161,0.00060273,120]
[322803128,1713333041162,-500.0,0.00060273,120]
[322803129,1713333041172,-573.56637955,0.00060273,120]
[322803130,1713333041182,-500.0,0.00060273,120]
[322803131,1713333041192,-500.0,0.00060273,120]
[322803132,1713333041202,-1000.0,0.00060273,120]
[322803133,1713333041212,-500.0,0.00060273,120]
[322803134,1713333041222,-500.0,0.00060273,120]
[322803135,1713333041231,-500.0,0.00060273,120]
[322803136,1713333041242,-500.0,0.00060273,120]
[322803137,1713333041252,-500.0,0.00060273,120]
[322803138,1713333041262,-500.0,0.00060273,120]
[322803139,1713333041271,-620.10518101,0.00060273,120]
[322803140,1713333041280,-500.0,0.00060273,120]
[322803141,1713333041290,-500.0,0.00060273,120]
[322803142,1713333041300,-501.20572998,0.00060273,120]
[322803143,1713333041310,-500.0,0.00060273,120]
[322803144,1713333041319,-500.0,0.00060273,120]
[322803145,1713333041328,-500.0,0.00060273,120]
[322803146,1713333041339,-500.0,0.00060273,120]
[322803147,1713333041348,-27989.2,0.00060273,120]
[322803148,1713333041359,-500.0,0.00060273,120]
[322803149,1713333041368,-583.93,0.00060273,120]
[322803150,1713333041378,-641.2095286,0.00060273,120]
[322803151,1713333041387,-500.0,0.00060273,120]
[322803152,1713333041396,-570.9617299,0.00060273,120]
[322803153,1713333041407,-500.64932968,0.00060273,120]
[322803154,1713333041415,-500.0,0.00060273,120]
[322803155,1713333041424,-500.0,0.00060273,120]
[322803156,1713333041434,-515.0,0.00060273,65]
[322803157,1713333041444,-7519.535238,0.00060273,120]
[322803158,1713333041453,-500.0,0.00060273,120]
[322803159,1713333041463,-7519.535238,0.00060273,120]
[322803160,1713333041474,-500.0,0.00060273,120]
[322803161,1713333041483,-500.0,0.00060273,120]
[322803162,1713333041493,-500.0,0.00060273,120]
[322803163,1713333041504,-500.0,0.00060273,120]
[322803164,1713333041514,-510.81662627,0.00060273,120]
[322803165,1713333041523,-151.0,0.00060273,120]
[322803166,1713333041532,-500.0,0.00060273,7]
[322803167,1713333041543,-179.45862738,0.00060273,120]
[322803168,1713333041554,-532.73939981,0.00060273,120]
[322803169,1713333041564,-151.0,0.00060273,120]
[322803170,1713333041575,-500.0,0.00060273,120]
[322803171,1713333041585,-21498.73,0.00060273,120]
[322803172,1713333041597,-500.0,0.00060273,120]
[322803173,1713333041608,-500.0,0.00060273,120]
[322803174,1713333041617,-666.05,0.00060273,120]
[322803175,1713333041627,-500.0,0.00060273,120]
[322803176,1713333041636,-1762.426907,0.00060273,120]
[322803177,1713333041647,-501.81976422,0.00060273,120]
[322803178,1713333041658,-500.0,0.00060273,60]
[322803179,1713333041668,-2066.852675,0.00060273,120]
[322803180,1713333041678,-1762.426907,0.00060273,120]
[322803181,1713333041689,-500.0,0.00060273,120]
[322803182,1713333041699,-499.18488256,0.00060273,120]
[322803183,1713333041708,-500.0,0.00060273,120]
[322803184,1713333041720,-2066.852675,0.00060273,120]
[322803185,1713333041729,-500.0,0.00060273,120]
[322803186,1713333041738,-500.0,0.00060273,120]
[322803187,1713333041750,-500.0,0.00060273,120]
[322803188,1713333041759,-195.21558865,0.00060273,120]
[322803189,1713333041770,-500.0,0.00060273,120]
[322803190,1713333041780,-508.27504128,0.00060273,120]
[322803191,1713333041790,-500.0,0.00060273,120]
[322803192,1713333041800,-500.0,0.00060273,120]
[322803193,1713333041811,-500.0,0.00060273,120]
[322803194,1713333041820,-5589.65,0.00060273,120]
[322803195,1713333041830,-500.0,0.00060273,120]
[322803196,1713333041839,-500.0,0.00060273,120]
[322803197,1713333041849,-500.0,0.00060273,120]
[322803198,1713333041860,-3817.42,0.00060273,120]
[322803199,1713333041871,-501.8282219,0.00060273,120]
[322803200,1713333041881,-500.0,0.00060273,120]
[322803201,1713333041891,-500.0,0.00060273,120]
[322803202,1713333041900,-466.384024,0.00060273,120]
[322803203,1713333041910,-500.0,0.00060273,120]
[322803204,1713333041919,-466.384024,0.00060273,120]
[322803205,1713333041928,-500.0,0.00060273,120]
[322803206,1713333041937,-151.0,0.00060273,120]
[322803207,1713333041946,-816.55,0.00060273,120]
[322803208,1713333041956,-500.0,0.00060273,120]
[322803209,1713333041965,-151.0,0.00060273,120]
[322803210,1713333041977,-524.73298237,0.00060273,120]
[322803211,1713333041988,-500.0,0.00060273,120]
[322803212,1713333041999,-514.37287382,0.00060273,120]
[322803213,1713333042008,-500.0,0.00060273,120]
[322803214,1713333042017,-500.0,0.00060273,120]
[322803215,1713333042026,-151.0,0.00060273,120]
[322803216,1713333042036,-500.0,0.00060273,120]
[322803217,1713333042046,-507.07817405,0.00060273,120]
[322803218,1713333042055,-500.0,0.00060273,120]
[322803219,1713333042066,-500.0,0.00060273,120]
[322803220,1713333042075,-500.0,0.00060273,120]
[322803221,1713333042086,-500.0,0.00060273,120]
[322803222,1713333042097,-811.29,0.00060273,120]
[322803223,1713333042106,-151.0,0.00060273,120]
[322803224,1713333042117,-1224.79,0.00060273,120]
[322803225,1713333042129,-500.0,0.00060273,120]
[322803226,1713333042140,-1000.0,0.00061644,120]
[322803228,1713333042150,-254.817243,0.00062004,2]
[322803230,1713333042160,-2345.0,0.000623,120]
[322803231,1713333042169,-1000.0,0.00062877,120]
[322803232,1713333042178,-1598.2575982,0.00063,7]
[322803233,1713333042187,-150.84915085,0.00063527,2]
[322803234,1713333042197,-157.593849,0.00063927,2]
[322803235,1713333042207,-1000.0,0.00064384,120]
[322803236,1713333042218,-1000.0,0.00065616,120]
[322803237,1713333042228,-156.0,0.00065723,35]
[322803238,1713333042237,-156.0,0.00065733,35]
[322803239,1713333042247,-156.0,0.00065743,35]
[322803241,1713333042257,-500.0,0.00065753,120]
[322803243,1713333042267,-500.0,0.00065753,120]
[322803244,1713333042276,-500.0,0.00065753,120]
[322803245,1713333042286,-500.0,0.00065753,120]
[322803246,1713333042296,-500.0,0.00065753,120]
[322803247,1713333042306,-500.0,0.00065753,120]
[322803248,1713333042316,-500.0,0.00065753,120]
[322803249,1713333042326,-500.0,0.00065753,120]
[322803250,1713333042336,-500.0,0.00065753,120]
[322803251,1713333042346,-500.0,0.00065753,120]
[322803252,1713333042356,-501.55414562,0.00065753,120]
[322803253,1713333042365,-500.0,0.00065753,120]
[322803254,1713333042376,-7591.79,0.00065753,120]
[322803255,1713333042390,-503.56170519,0.00065753,120]
[322803256,1713333042402,-500.0,0.00065753,120]
[322803257,1713333042416,-500.0,0.00065753,120]
[322803258,1713333042426,-500.0,0.00065753,120]
[322803259,1713333042435,-500.0,0.00065753,120]
[322803260,1713333042526,-514.99932069,0.00065753,120]
[322803261,1713333042536,-500.0,0.00065753,120]
[322803262,1713333042545,-500.0,0.00065753,120]
[322803263,1713333042555,-500.0,0.00065753,120]
[322803264,1713333042564,-500.0,0.00065753,120]